Workbook

Sheet RELEVÉS
A1: 08:48:00 | K1: J | N1: N | Q1: W | AL1: AG | AO1: AK | AV1: AX | AW1: AX
B2: Pression mini | E2: Pression maxi | H2: Température ressentie | K2: Température mini | N2: Température maxi | Q2: Vent en Km/h | AB2: Humidité H% | AL2: Pluie | AO2: Temps de pluie | AV2: Sonde Soleil
B3: mini | D3: heure | E3: maxi | G3: heure | H3: mini | J3: heure | K3: mini | M3: heure | N3: maxi | P3: heure | Q3: maxi | S3: Heure | U3: Moyenne | X3: Sens | Z3: Sens | AB3: Mini | AD3: Heure | AF3: Maxi | AH3: Heure | AJ3: Moy | AK3: mm | AM3: Heure | AO3: AK | AV3: 2
AO4: 0 à 7h | AQ4: 7 à 12h | AS4: 12 à 19h | AU4: 19h à 24h
B5: =MIN(H9:H1448) -> 0 | D5: =VLOOKUP($B5,$H$9:$Q$1448,10,0) -> 00:00:00 | E5: =MAX(H9:H1448) -> 21262 | G5: =VLOOKUP($E5,$H$9:$Q$1448,10,0) -> 15:13:00 | H5: =MAX($D$9:$D$1448) -> 11.9 | J5: =VLOOKUP($H5,$D$9:$Q$1448,14,0) -> 15:18:00 | K5: =MIN($B$9:$B$1448) -> 8.6 | M5: =VLOOKUP($K5,$B$9:$Q$1448,16,0) -> 04:46:00 | N5: =MAX(B9:B1448) -> 11.9 | P5: =VLOOKUP($N5,$B$9:$Q$1448,16,0) -> 15:18:00 | Q5: =MAX(E9:F1448) -> 9.4 | S5: =VLOOKUP($Q5,$F$9:$Q$1448,12,0) -> 00:45:00 | U5: =AVERAGE(F9:F1448) -> 1.920816327 | Z5: ONO | AB5: =MIN(C9:C1448) -> 77 | AD5: =VLOOKUP($AB5,$C$9:$Q$1448,15,0) -> 15:49:00 | AF5: =MAX(C9:C1448) -> 98 | AH5: =VLOOKUP($AF5,$C$9:$Q$1448,15,0) -> 08:10:00 | AJ5: =AVERAGE(C9:C1448) -> 89.94183673 | AK5: =MAX(K9:K1448) -> 0 | AM5: =(U1450/60)/1440 -> 00:00:00 | AO5: =AO6+AQ6 -> 00:00:00 | AS5: =AS6+AU6 -> 00:00:00
AO6: =SUM(U9:U428)/60/1440 -> 00:00:00 | AQ6: =SUM(U429:U728)/60/1440 -> 00:00:00 | AS6: =SUM(U729:U1148)/60/1440 -> 00:00:00 | AU6: =SUM(U1148:U1448)/60/1440 -> 00:00:00
E7: =MAX(E11:E1448) -> 8.3 | F7: =MAX(F11:F1448) -> 9.4 | H7: =MAX(H9:H1448) -> 21262 | I7: =MAX(I11:I1448) -> 1 | X7: Début
B8: T° Ext | C8: H% Ext | D8: Ressentie | E8: Vent | F8: Rafale | G8: Pression | H8: Luminosité | I8: Uv | J8: Pluie 1h | K8: Jour | L8: Semaine | M8: Mois | N8: Année | O8: CH1 | P8: CH2 | Q8: Heures | R8: Date | S8: Maxi | T8: Graph | U8: Pluie | W8: Soleil | X8: Fin | Z8: Soleil
B9: 9.8 | C9: 87 | D9: 9.8 | E9: 2.2 | F9: 3.6 | G9: 1029.1 | H9: 0 | I9: 0 | J9: 0 | K9: 0 | L9: 0 | M9: 1.5 | N9: 112.2 | O9: 9.6 | P9: 9.5 | Q9: 00:00:00 | R9: 20230219 | Z9: N | AD9: 0 | AE9: 0
B10: 9.8 | C10: 87 | D10: 9.8 | E10: 2.2 | F10: 3.6 | G10: 1029.4 | H10: 0 | I10: 0 | J10: 0 | K10: 0 | L10: 0 | M10: 1.5 | N10: 112.2 | O10: 9.6 | P10: 9.5 | Q10: 00:01:00 | U10: =IF(J10>0,60,"") ->  | Z10: N | AB10: 0 | AD10: 11 | AE10: 22
B11: 9.8 | C11: 87 | D11: 9.8 | E11: 1.4 | F11: 1.8 | G11: 1029.1 | H11: 0 | I11: 0 | J11: 0 | K11: 0 | L11: 0 | M11: 1.5 | N11: 112.2 | O11: 9.6 | P11: 9.5 | Q11: 00:02:00 | U11: =IF(J11>0,60,"") ->  | Z11: NNE | AB11: 22.5 | AD11: =AB11+$AD$10 -> 33.5 | AE11: 45 | AM11: Aide mémoire
B12: 9.8 | C12: 87 | D12: 9.8 | E12: 2.2 | F12: 3.6 | G12: 1029.1 | H12: 0 | I12: 0 | J12: 0 | K12: 0 | L12: 0 | M12: 1.5 | N12: 112.2 | O12: 9.6 | P12: 9.5 | Q12: 00:03:00 | Z12: NE | AB12: 45 | AD12: 56 | AE12: 67 | AK12: Pluie | AM12: =SOMME(K9:K1448)
B13: 9.8 | C13: 87 | D13: 9.8 | E13: 1.4 | F13: 1.8 | G13: 1029 | H13: 0 | I13: 0 | J13: 0 | K13: 0 | L13: 0 | M13: 1.5 | N13: 112.2 | O13: 9.6 | P13: 9.5 | Q13: 00:04:00 | Z13: ENE | AB13: 67.5 | AD13: 78.5 | AE13: 90 | AJ13: AK | AM13: =MAX(K9:K1448)
B14: 9.8 | C14: 87 | D14: 9.8 | E14: 1.1 | F14: 1.8 | G14: 1028.9 | H14: 0 | I14: 0 | J14: 0 | K14: 0 | L14: 0 | M14: 1.5 | N14: 112.2 | O14: 9.6 | P14: 9.5 | Q14: 00:05:00 | AB14: 90 | AD14: 101 | AE14: 112 | AK14: Commentaires | AO14: =SOMME(U9:U1448)
B15: 9.8 | C15: 87 | D15: 9.8 | E15: 1.1 | F15: 1.8 | G15: 1029.2 | H15: 0 | I15: 0 | J15: 0 | K15: 0 | L15: 0 | M15: 1.5 | N15: 112.2 | O15: 9.6 | P15: 9.5 | Q15: 00:06:00 | Z15: ESE | AB15: 112.5 | AD15: 123.5 | AE15: 135
B16: 9.8 | C16: 87 | D16: 9.8 | E16: 3.6 | F16: 5.4 | G16: 1029.3 | H16: 0 | I16: 0 | J16: 0 | K16: 0 | L16: 0 | M16: 1.5 | N16: 112.2 | O16: 9.6 | P16: 9.5 | Q16: 00:07:00 | Z16: SSE | AB16: 135 | AD16: 146 | AE16: 157 | AK16: Soleil | AM16: =SOMME(W9:W1448)
B17: 9.8 | C17: 87 | D17: 9.8 | E17: 1.1 | F17: 1.8 | G17: 1029.1 | H17: 0 | I17: 0 | J17: 0 | K17: 0 | L17: 0 | M17: 1.5 | N17: 112.2 | O17: 9.6 | P17: 9.5 | Q17: 00:08:00 | Z17: SE | AB17: 157.5 | AD17: 168.5 | AE17: 180 | AJ17: AV3 | AK17: Soleil | AM17: =W1450/60/1440
B18: 9.8 | C18: 87 | D18: 9.8 | E18: 0 | F18: 0 | G18: 1029 | H18: 0 | I18: 0 | J18: 0 | K18: 0 | L18: 0 | M18: 1.5 | N18: 112.2 | O18: 9.6 | P18: 9.5 | Q18: 00:09:00 | Z18: S | AB18: 180 | AD18: 191 | AE18: 202
B19: 9.8 | C19: 87 | D19: 9.8 | E19: 1.1 | F19: 1.8 | G19: 1029.1 | H19: 0 | I19: 0 | J19: 0 | K19: 0 | L19: 0 | M19: 1.5 | N19: 112.2 | O19: 9.6 | P19: 9.5 | Q19: 00:10:00 | Z19: SSO | AB19: 202.5 | AD19: 213.5 | AE19: 225 | AK19: Vues
B20: 9.8 | C20: 87 | D20: 9.8 | E20: 0 | F20: 0 | G20: 1029 | H20: 0 | I20: 0 | J20: 0 | K20: 0 | L20: 0 | M20: 1.5 | N20: 112.2 | O20: 9.6 | P20: 9.4 | Q20: 00:11:00 | Z20: SO | AB20: 225 | AD20: 236 | AE20: 247 | AJ20: 2023-01-22 | AK20: 104
B21: 9.8 | C21: 87 | D21: 9.8 | E21: 4 | F21: 5.4 | G21: 1029 | H21: 0 | I21: 0 | J21: 0 | K21: 0 | L21: 0 | M21: 1.5 | N21: 112.2 | O21: 9.6 | P21: 9.5 | Q21: 00:12:00 | Z21: OSO | AB21: 247.5 | AD21: 258.5 | AE21: 270 | AJ21: 2023-01-28 | AK21: 128 | AM21: =AK21-AK20 -> 24
B22: 9.8 | C22: 87 | D22: 9.8 | E22: 1.1 | F22: 1.8 | G22: 1028.9 | H22: 0 | I22: 0 | J22: 0 | K22: 0 | L22: 0 | M22: 1.5 | N22: 112.2 | O22: 9.5 | P22: 9.4 | Q22: 00:13:00 | Z22: O | AB22: 270 | AD22: 281 | AE22: 292 | AJ22: 2023-02-05 | AK22: 152 | AM22: =AK22-AK21 -> 24
B23: 9.8 | C23: 87 | D23: 9.8 | E23: 1.1 | F23: 1.8 | G23: 1029.1 | H23: 0 | I23: 0 | J23: 0 | K23: 0 | L23: 0 | M23: 1.5 | N23: 112.2 | O23: 9.5 | P23: 9.4 | Q23: 00:14:00 | Z23: ONO | AB23: 292.5 | AD23: 303.5 | AE23: 315 | AI23: 1900-01-23 | AJ23: 2023-02-12 | AK23: 193 | AL23: =AJ23-AJ22 -> 7 | AM23: =AK23-AK22 -> 41
B24: 9.8 | C24: 87 | D24: 9.8 | E24: 1.4 | F24: 1.8 | G24: 1029.1 | H24: 0 | I24: 0 | J24: 0 | K24: 0 | L24: 0 | M24: 1.5 | N24: 112.2 | O24: 9.5 | P24: 9.4 | Q24: 00:15:00 | Z24: NO | AB24: 315 | AD24: 326 | AE24: 337 | AI24: 2022-11-27 | AL24: -44969
B25: 9.8 | C25: 87 | D25: 9.8 | E25: 2.2 | F25: 3.6 | G25: 1029 | H25: 0 | I25: 0 | J25: 0 | K25: 0 | L25: 0 | M25: 1.5 | N25: 112.2 | O25: 9.5 | P25: 9.4 | Q25: 00:16:00 | U25: =IF(J25>0,60,"") ->  | Z25: NNO | AB25: 337.5 | AD25: 348.5 | AE25: 349 | AI25: 2022-12-06 | AL25: 0
B26: 9.8 | C26: 87 | D26: 9.8 | E26: 0 | F26: 0 | G26: 1028.8 | H26: 0 | I26: 0 | J26: 0 | K26: 0 | L26: 0 | M26: 1.5 | N26: 112.2 | O26: 9.5 | P26: 9.4 | Q26: 00:17:00 | Z26: N | AB26: 349 | AD26: 360 | AI26: 2022-12-12 | AL26: 0
B27: 9.8 | C27: 87 | D27: 9.8 | E27: 0.4 | F27: 1.8 | G27: 1029 | H27: 0 | I27: 0 | J27: 0 | K27: 0 | L27: 0 | M27: 1.5 | N27: 112.2 | O27: 9.5 | P27: 9.4 | Q27: 00:18:00 | AI27: 2022-12-18 | AL27: 0
B28: 9.8 | C28: 87 | D28: 9.8 | E28: 1.1 | F28: 1.8 | G28: 1029.2 | H28: 0 | I28: 0 | J28: 0 | K28: 0 | L28: 0 | M28: 1.5 | N28: 112.2 | O28: 9.5 | P28: 9.4 | Q28: 00:19:00 | AD28: =INDEX($Z$9:$Z$26,IF(ISNA(MATCH($AD$30,$AD$9:$AD$26,0)),MATCH($AD$30,$AD$9:$AD$26,1)+1,MATCH($AD$30,$AD$9:$AD$26,0)),1) ->  | AI28: 2022-12-27 | AL28: 0
B29: 9.8 | C29: 87 | D29: 9.8 | E29: 1.4 | F29: 1.8 | G29: 1028.9 | H29: 0 | I29: 0 | J29: 0 | K29: 0 | L29: 0 | M29: 1.5 | N29: 112.2 | O29: 9.5 | P29: 9.4 | Q29: 00:20:00 | AB29: =SUM(AB32:AB47) ->  | AD29: =MAX(AB32:AB47) ->  | AF29: =SUM(AF32:AF47) -> 0 | AI29: 2023-12-31 | AL29: 0
B30: 9.7 | C30: 87 | D30: 9.7 | E30: 0 | F30: 0 | G30: 1029.1 | H30: 0 | I30: 0 | J30: 0 | K30: 0 | L30: 0 | M30: 1.5 | N30: 112.2 | O30: 9.5 | P30: 9.4 | Q30: 00:21:00 | AD30: =VLOOKUP(AD29,AB32:AD47,AD31,0) -> 
B31: 9.7 | C31: 87 | D31: 9.7 | E31: 0 | F31: 0 | G31: 1029.2 | H31: 0 | I31: 0 | J31: 0 | K31: 0 | L31: 0 | M31: 1.5 | N31: 112.2 | O31: 9.5 | P31: 9.3 | Q31: 00:22:00 | AD31: 3
B32: 9.7 | C32: 88 | D32: 9.7 | E32: 0 | F32: 0 | G32: 1029.1 | H32: 0 | I32: 0 | J32: 0 | K32: 0 | L32: 0 | M32: 1.5 | N32: 112.2 | O32: 9.4 | P32: 9.3 | Q32: 00:23:00 | AB32: =AF32/$AF$29 ->  | AD32: 0 | AF32: =COUNTIF($G$9:$G$1448,AD32) -> 0
B33: 9.7 | C33: 88 | D33: 9.7 | E33: 0.4 | F33: 1.8 | G33: 1029.1 | H33: 0 | I33: 0 | J33: 0 | K33: 0 | L33: 0 | M33: 1.5 | N33: 112.2 | O33: 9.5 | P33: 9.3 | Q33: 00:24:00 | AB33: =AF33/$AF$29 ->  | AD33: 22 | AF33: =COUNTIF($G$9:$G$1448,AD33) -> 0
B34: 9.7 | C34: 87 | D34: 9.7 | E34: 4.7 | F34: 5.4 | G34: 1029.3 | H34: 0 | I34: 0 | J34: 0 | K34: 0 | L34: 0 | M34: 1.5 | N34: 112.2 | O34: 9.4 | P34: 9.3 | Q34: 00:25:00 | AB34: =AF34/$AF$29 ->  | AD34: 45 | AF34: 0
B35: 9.7 | C35: 87 | D35: 9.7 | E35: 1.8 | F35: 3.6 | G35: 1029.1 | H35: 0 | I35: 0 | J35: 0 | K35: 0 | L35: 0 | M35: 1.5 | N35: 112.2 | O35: 9.4 | P35: 9.3 | Q35: 00:26:00 | AD35: 67 | AF35: =COUNTIF($G$9:$G$1448,AD35) -> 0
B36: 9.7 | C36: 87 | D36: 9.7 | E36: 0 | F36: 0 | G36: 1029 | H36: 0 | I36: 0 | J36: 0 | K36: 0 | L36: 0 | M36: 1.5 | N36: 112.2 | O36: 9.4 | P36: 9.3 | Q36: 00:27:00 | AD36: 90 | AF36: 0
B37: 9.7 | C37: 87 | D37: 9.7 | E37: 1.4 | F37: 3.6 | G37: 1029.1 | H37: 0 | I37: 0 | J37: 0 | K37: 0 | L37: 0 | M37: 1.5 | N37: 112.2 | O37: 9.4 | P37: 9.3 | Q37: 00:28:00 | AD37: 112 | AF37: 0
B38: 9.7 | C38: 87 | D38: 9.7 | E38: 0 | F38: 0 | G38: 1029.1 | H38: 0 | I38: 0 | J38: 0 | K38: 0 | L38: 0 | M38: 1.5 | N38: 112.2 | O38: 9.4 | P38: 9.3 | Q38: 00:29:00 | AD38: 135 | AF38: 0
B39: 9.7 | C39: 87 | D39: 9.7 | E39: 1.4 | F39: 1.8 | G39: 1029.2 | H39: 0 | I39: 0 | J39: 0 | K39: 0 | L39: 0 | M39: 1.5 | N39: 112.2 | O39: 9.4 | P39: 9.3 | Q39: 00:30:00 | AD39: 157 | AF39: 0
B40: 9.7 | C40: 87 | D40: 9.7 | E40: 2.2 | F40: 3.6 | G40: 1029 | H40: 0 | I40: 0 | J40: 0 | K40: 0 | L40: 0 | M40: 1.5 | N40: 112.2 | O40: 9.4 | P40: 9.3 | Q40: 00:31:00 | AD40: 180 | AF40: 0
B41: 9.7 | C41: 87 | D41: 9.7 | E41: 0 | F41: 0 | G41: 1029.2 | H41: 0 | I41: 0 | J41: 0 | K41: 0 | L41: 0 | M41: 1.5 | N41: 112.2 | O41: 9.4 | P41: 9.3 | Q41: 00:32:00 | AD41: 202 | AF41: 0
B42: 9.7 | C42: 87 | D42: 9.7 | E42: 0 | F42: 0 | G42: 1028.9 | H42: 0 | I42: 0 | J42: 0 | K42: 0 | L42: 0 | M42: 1.5 | N42: 112.2 | O42: 9.4 | P42: 9.3 | Q42: 00:33:00 | AD42: 225 | AF42: 0
B43: 9.7 | C43: 87 | D43: 9.7 | E43: 2.5 | F43: 3.6 | G43: 1029 | H43: 0 | I43: 0 | J43: 0 | K43: 0 | L43: 0 | M43: 1.5 | N43: 112.2 | O43: 9.4 | P43: 9.3 | Q43: 00:34:00 | AD43: 247 | AF43: 0
B44: 9.7 | C44: 87 | D44: 9.7 | E44: 0.4 | F44: 1.8 | G44: 1029.1 | H44: 0 | I44: 0 | J44: 0 | K44: 0 | L44: 0 | M44: 1.5 | N44: 112.2 | O44: 9.4 | P44: 9.3 | Q44: 00:35:00 | AD44: 270 | AF44: 0
B45: 9.7 | C45: 87 | D45: 9.7 | E45: 0.4 | F45: 1.8 | G45: 1029 | H45: 0 | I45: 0 | J45: 0 | K45: 0 | L45: 0 | M45: 1.5 | N45: 112.2 | O45: 9.5 | P45: 9.3 | Q45: 00:36:00 | AD45: 292 | AF45: 0
B46: 9.7 | C46: 87 | D46: 9.7 | E46: 2.2 | F46: 3.6 | G46: 1029.2 | H46: 0 | I46: 0 | J46: 0 | K46: 0 | L46: 0 | M46: 1.5 | N46: 112.2 | O46: 9.4 | P46: 9.3 | Q46: 00:37:00 | AD46: 315 | AF46: 0
B47: 9.7 | C47: 87 | D47: 9.7 | E47: 0.4 | F47: 1.8 | G47: 1029.2 | H47: 0 | I47: 0 | J47: 0 | K47: 0 | L47: 0 | M47: 1.5 | N47: 112.2 | O47: 9.4 | P47: 9.3 | Q47: 00:38:00 | AD47: 337 | AF47: 0
B48: 9.7 | C48: 87 | D48: 9.7 | E48: 1.8 | F48: 1.8 | G48: 1029.1 | H48: 0 | I48: 0 | J48: 0 | K48: 0 | L48: 0 | M48: 1.5 | N48: 112.2 | O48: 9.4 | P48: 9.3 | Q48: 00:39:00
B49: 9.7 | C49: 88 | D49: 9.7 | E49: 1.1 | F49: 1.8 | G49: 1029.2 | H49: 0 | I49: 0 | J49: 0 | K49: 0 | L49: 0 | M49: 1.5 | N49: 112.2 | O49: 9.4 | P49: 9.3 | Q49: 00:40:00
B50: 9.7 | C50: 88 | D50: 9.7 | E50: 1.1 | F50: 1.8 | G50: 1029.2 | H50: 0 | I50: 0 | J50: 0 | K50: 0 | L50: 0 | M50: 1.5 | N50: 112.2 | O50: 9.4 | P50: 9.3 | Q50: 00:41:00
B51: 9.6 | C51: 88 | D51: 9.6 | E51: 2.2 | F51: 3.6 | G51: 1029.1 | H51: 0 | I51: 0 | J51: 0 | K51: 0 | L51: 0 | M51: 1.5 | N51: 112.2 | O51: 9.5 | P51: 9.3 | Q51: 00:42:00
B52: 9.6 | C52: 87 | D52: 9.6 | E52: 2.2 | F52: 3.6 | G52: 1029.2 | H52: 0 | I52: 0 | J52: 0 | K52: 0 | L52: 0 | M52: 1.5 | N52: 112.2 | O52: 9.5 | P52: 9.3 | Q52: 00:43:00
B53: 9.6 | C53: 87 | D53: 9.6 | E53: 3.6 | F53: 5.4 | G53: 1029.2 | H53: 0 | I53: 0 | J53: 0 | K53: 0 | L53: 0 | M53: 1.5 | N53: 112.2 | O53: 9.5 | P53: 9.3 | Q53: 00:44:00
B54: 9.6 | C54: 87 | D54: 8.8 | E54: 6.8 | F54: 9.4 | G54: 1029.1 | H54: 0 | I54: 0 | J54: 0 | K54: 0 | L54: 0 | M54: 1.5 | N54: 112.2 | O54: 9.5 | P54: 9.3 | Q54: 00:45:00
B55: 9.7 | C55: 87 | D55: 9.7 | E55: 3.6 | F55: 5.4 | G55: 1029.3 | H55: 0 | I55: 0 | J55: 0 | K55: 0 | L55: 0 | M55: 1.5 | N55: 112.2 | O55: 9.5 | P55: 9.3 | Q55: 00:46:00
B56: 9.7 | C56: 87 | D56: 9.7 | E56: 3.6 | F56: 5.4 | G56: 1029.1 | H56: 0 | I56: 0 | J56: 0 | K56: 0 | L56: 0 | M56: 1.5 | N56: 112.2 | O56: 9.5 | P56: 9.3 | Q56: 00:47:00
B57: 9.7 | C57: 87 | D57: 9.7 | E57: 3.6 | F57: 5.4 | G57: 1029.2 | H57: 0 | I57: 0 | J57: 0 | K57: 0 | L57: 0 | M57: 1.5 | N57: 112.2 | O57: 9.5 | P57: 9.4 | Q57: 00:48:00
B58: 9.7 | C58: 87 | D58: 9.7 | E58: 0.7 | F58: 3.6 | G58: 1029 | H58: 0 | I58: 0 | J58: 0 | K58: 0 | L58: 0 | M58: 1.5 | N58: 112.2 | O58: 9.5 | P58: 9.4 | Q58: 00:49:00
B59: 9.7 | C59: 87 | D59: 9.7 | E59: 1.1 | F59: 1.8 | G59: 1029.1 | H59: 0 | I59: 0 | J59: 0 | K59: 0 | L59: 0 | M59: 1.5 | N59: 112.2 | O59: 9.5 | P59: 9.4 | Q59: 00:50:00
B60: 9.7 | C60: 87 | D60: 9.7 | E60: 3.6 | F60: 3.6 | G60: 1029.1 | H60: 0 | I60: 0 | J60: 0 | K60: 0 | L60: 0 | M60: 1.5 | N60: 112.2 | O60: 9.5 | P60: 9.4 | Q60: 00:51:00
B61: 9.7 | C61: 87 | D61: 9.2 | E61: 5.8 | F61: 7.2 | G61: 1029 | H61: 0 | I61: 0 | J61: 0 | K61: 0 | L61: 0 | M61: 1.5 | N61: 112.2 | O61: 9.5 | P61: 9.4 | Q61: 00:52:00
B62: 9.7 | C62: 86 | D62: 9.7 | E62: 1.4 | F62: 1.8 | G62: 1029 | H62: 0 | I62: 0 | J62: 0 | K62: 0 | L62: 0 | M62: 1.5 | N62: 112.2 | O62: 9.5 | P62: 9.4 | Q62: 00:53:00
B63: 9.7 | C63: 86 | D63: 9.7 | E63: 2.2 | F63: 3.6 | G63: 1029.1 | H63: 0 | I63: 0 | J63: 0 | K63: 0 | L63: 0 | M63: 1.5 | N63: 112.2 | O63: 9.5 | P63: 9.4 | Q63: 00:54:00
B64: 9.7 | C64: 86 | D64: 9.7 | E64: 4.7 | F64: 7.2 | G64: 1029.2 | H64: 0 | I64: 0 | J64: 0 | K64: 0 | L64: 0 | M64: 1.5 | N64: 112.2 | O64: 9.5 | P64: 9.4 | Q64: 00:55:00
B65: 9.7 | C65: 86 | D65: 9.7 | E65: 3.6 | F65: 5.4 | G65: 1029.3 | H65: 0 | I65: 0 | J65: 0 | K65: 0 | L65: 0 | M65: 1.5 | N65: 112.2 | O65: 9.5 | P65: 9.4 | Q65: 00:56:00
B66: 9.8 | C66: 86 | D66: 9.8 | E66: 1.4 | F66: 1.8 | G66: 1029.1 | H66: 0 | I66: 0 | J66: 0 | K66: 0 | L66: 0 | M66: 1.5 | N66: 112.2 | O66: 9.5 | P66: 9.4 | Q66: 00:57:00
B67: 9.8 | C67: 86 | D67: 9.8 | E67: 2.9 | F67: 3.6 | G67: 1029.1 | H67: 0 | I67: 0 | J67: 0 | K67: 0 | L67: 0 | M67: 1.5 | N67: 112.2 | O67: 9.5 | P67: 9.4 | Q67: 00:58:00
B68: 9.8 | C68: 86 | D68: 9.8 | E68: 1.1 | F68: 3.6 | G68: 1029.2 | H68: 0 | I68: 0 | J68: 0 | K68: 0 | L68: 0 | M68: 1.5 | N68: 112.2 | O68: 9.5 | P68: 9.4 | Q68: 00:59:00
B69: 9.8 | C69: 87 | D69: 9.8 | E69: 2.9 | F69: 5.4 | G69: 1029.1 | H69: 0 | I69: 0 | J69: 0 | K69: 0 | L69: 0 | M69: 1.5 | N69: 112.2 | O69: 9.5 | P69: 9.4 | Q69: 01:00:00
B70: 9.8 | C70: 87 | D70: 9.8 | E70: 2.9 | F70: 3.6 | G70: 1029.1 | H70: 0 | I70: 0 | J70: 0 | K70: 0 | L70: 0 | M70: 1.5 | N70: 112.2 | O70: 9.5 | P70: 9.4 | Q70: 01:01:00
B71: 9.7 | C71: 87 | D71: 9.7 | E71: 1.4 | F71: 1.8 | G71: 1028.9 | H71: 0 | I71: 0 | J71: 0 | K71: 0 | L71: 0 | M71: 1.5 | N71: 112.2 | O71: 9.6 | P71: 9.4 | Q71: 01:02:00
B72: 9.7 | C72: 87 | D72: 9.7 | E72: 0.4 | F72: 1.8 | G72: 1029.1 | H72: 0 | I72: 0 | J72: 0 | K72: 0 | L72: 0 | M72: 1.5 | N72: 112.2 | O72: 9.6 | P72: 9.4 | Q72: 01:03:00
B73: 9.7 | C73: 87 | D73: 9.7 | E73: 0.7 | F73: 1.8 | G73: 1029.3 | H73: 0 | I73: 0 | J73: 0 | K73: 0 | L73: 0 | M73: 1.5 | N73: 112.2 | O73: 9.6 | P73: 9.4 | Q73: 01:04:00
B74: 9.7 | C74: 87 | D74: 9.7 | E74: 1.4 | F74: 3.6 | G74: 1028.9 | H74: 0 | I74: 0 | J74: 0 | K74: 0 | L74: 0 | M74: 1.5 | N74: 112.2 | O74: 9.6 | P74: 9.4 | Q74: 01:05:00
B75: 9.7 | C75: 87 | D75: 9.7 | E75: 1.4 | F75: 1.8 | G75: 1029.1 | H75: 0 | I75: 0 | J75: 0 | K75: 0 | L75: 0 | M75: 1.5 | N75: 112.2 | O75: 9.5 | P75: 9.4 | Q75: 01:06:00 | U75: =IF(J75>0,60,"") -> 
B76: 9.6 | C76: 87 | D76: 9.6 | E76: 1.8 | F76: 1.8 | G76: 1029.1 | H76: 0 | I76: 0 | J76: 0 | K76: 0 | L76: 0 | M76: 1.5 | N76: 112.2 | O76: 9.5 | P76: 9.4 | Q76: 01:07:00
B77: 9.6 | C77: 87 | D77: 9.6 | E77: 2.9 | F77: 5.4 | G77: 1029.1 | H77: 0 | I77: 0 | J77: 0 | K77: 0 | L77: 0 | M77: 1.5 | N77: 112.2 | O77: 9.6 | P77: 9.4 | Q77: 01:08:00
B78: 9.6 | C78: 87 | D78: 9.6 | E78: 3.2 | F78: 5.4 | G78: 1029 | H78: 0 | I78: 0 | J78: 0 | K78: 0 | L78: 0 | M78: 1.5 | N78: 112.2 | O78: 9.6 | P78: 9.4 | Q78: 01:09:00
B79: 9.6 | C79: 87 | D79: 9.6 | E79: 1.8 | F79: 1.8 | G79: 1028.8 | H79: 0 | I79: 0 | J79: 0 | K79: 0 | L79: 0 | M79: 1.5 | N79: 112.2 | O79: 9.5 | P79: 9.4 | Q79: 01:10:00
B80: 9.6 | C80: 87 | D80: 9.6 | E80: 2.9 | F80: 3.6 | G80: 1029 | H80: 0 | I80: 0 | J80: 0 | K80: 0 | L80: 0 | M80: 1.5 | N80: 112.2 | O80: 9.5 | P80: 9.4 | Q80: 01:11:00
B81: 9.6 | C81: 87 | D81: 9.6 | E81: 3.2 | F81: 5.4 | G81: 1028.8 | H81: 0 | I81: 0 | J81: 0 | K81: 0 | L81: 0 | M81: 1.5 | N81: 112.2 | O81: 9.5 | P81: 9.4 | Q81: 01:12:00
B82: 9.6 | C82: 87 | D82: 9.6 | E82: 1.8 | F82: 1.8 | G82: 1029.1 | H82: 0 | I82: 0 | J82: 0 | K82: 0 | L82: 0 | M82: 1.5 | N82: 112.2 | O82: 9.5 | P82: 9.4 | Q82: 01:13:00
B83: 9.6 | C83: 87 | D83: 9.6 | E83: 4 | F83: 5.4 | G83: 1029 | H83: 0 | I83: 0 | J83: 0 | K83: 0 | L83: 0 | M83: 1.5 | N83: 112.2 | O83: 9.5 | P83: 9.4 | Q83: 01:14:00
B84: 9.6 | C84: 87 | D84: 9.6 | E84: 1.8 | F84: 1.8 | G84: 1029.1 | H84: 0 | I84: 0 | J84: 0 | K84: 0 | L84: 0 | M84: 1.5 | N84: 112.2 | O84: 9.5 | P84: 9.3 | Q84: 01:15:00
B85: 9.6 | C85: 87 | D85: 9.6 | E85: 1.4 | F85: 1.8 | G85: 1028.9 | H85: 0 | I85: 0 | J85: 0 | K85: 0 | L85: 0 | M85: 1.5 | N85: 112.2 | O85: 9.5 | P85: 9.3 | Q85: 01:16:00
B86: 9.6 | C86: 87 | D86: 9.6 | E86: 0.4 | F86: 1.8 | G86: 1028.8 | H86: 0 | I86: 0 | J86: 0 | K86: 0 | L86: 0 | M86: 1.5 | N86: 112.2 | O86: 9.5 | P86: 9.3 | Q86: 01:17:00
B87: 9.6 | C87: 87 | D87: 9.6 | E87: 0 | F87: 0 | G87: 1028.9 | H87: 0 | I87: 0 | J87: 0 | K87: 0 | L87: 0 | M87: 1.5 | N87: 112.2 | O87: 9.5 | P87: 9.4 | Q87: 01:18:00
B88: 9.6 | C88: 87 | D88: 9.6 | E88: 2.2 | F88: 3.6 | G88: 1029.1 | H88: 0 | I88: 0 | J88: 0 | K88: 0 | L88: 0 | M88: 1.5 | N88: 112.2 | O88: 9.5 | P88: 9.3 | Q88: 01:19:00
B89: 9.6 | C89: 87 | D89: 9.6 | E89: 1.8 | F89: 1.8 | G89: 1028.9 | H89: 0 | I89: 0 | J89: 0 | K89: 0 | L89: 0 | M89: 1.5 | N89: 112.2 | O89: 9.5 | P89: 9.3 | Q89: 01:20:00
B90: 9.6 | C90: 87 | D90: 9.6 | E90: 4.3 | F90: 5.4 | G90: 1028.9 | H90: 0 | I90: 0 | J90: 0 | K90: 0 | L90: 0 | M90: 1.5 | N90: 112.2 | O90: 9.4 | P90: 9.3 | Q90: 01:21:00
B91: 9.6 | C91: 87 | D91: 9.6 | E91: 2.2 | F91: 3.6 | G91: 1028.9 | H91: 0 | I91: 0 | J91: 0 | K91: 0 | L91: 0 | M91: 1.5 | N91: 112.2 | O91: 9.5 | P91: 9.3 | Q91: 01:22:00
B92: 9.6 | C92: 87 | D92: 9.6 | E92: 0.7 | F92: 1.8 | G92: 1028.9 | H92: 0 | I92: 0 | J92: 0 | K92: 0 | L92: 0 | M92: 1.5 | N92: 112.2 | O92: 9.4 | P92: 9.3 | Q92: 01:23:00
B93: 9.6 | C93: 87 | D93: 9.6 | E93: 2.2 | F93: 3.6 | G93: 1028.8 | H93: 0 | I93: 0 | J93: 0 | K93: 0 | L93: 0 | M93: 1.5 | N93: 112.2 | O93: 9.4 | P93: 9.3 | Q93: 01:24:00
B94: 9.6 | C94: 87 | D94: 9.6 | E94: 2.2 | F94: 3.6 | G94: 1029 | H94: 0 | I94: 0 | J94: 0 | K94: 0 | L94: 0 | M94: 1.5 | N94: 112.2 | O94: 9.5 | P94: 9.3 | Q94: 01:25:00
B95: 9.6 | C95: 87 | D95: 9.6 | E95: 0.7 | F95: 1.8 | G95: 1029.1 | H95: 0 | I95: 0 | J95: 0 | K95: 0 | L95: 0 | M95: 1.5 | N95: 112.2 | O95: 9.4 | P95: 9.3 | Q95: 01:26:00
B96: 9.6 | C96: 87 | D96: 9.6 | E96: 0 | F96: 0 | G96: 1029 | H96: 0 | I96: 0 | J96: 0 | K96: 0 | L96: 0 | M96: 1.5 | N96: 112.2 | O96: 9.4 | P96: 9.3 | Q96: 01:27:00
B97: 9.6 | C97: 87 | D97: 9.6 | E97: 3.2 | F97: 3.6 | G97: 1029.1 | H97: 0 | I97: 0 | J97: 0 | K97: 0 | L97: 0 | M97: 1.5 | N97: 112.2 | O97: 9.4 | P97: 9.3 | Q97: 01:28:00
B98: 9.5 | C98: 87 | D98: 9.5 | E98: 2.9 | F98: 3.6 | G98: 1029.1 | H98: 0 | I98: 0 | J98: 0 | K98: 0 | L98: 0 | M98: 1.5 | N98: 112.2 | O98: 9.4 | P98: 9.3 | Q98: 01:29:00
B99: 9.5 | C99: 87 | D99: 9.5 | E99: 4 | F99: 5.4 | G99: 1029.2 | H99: 0 | I99: 0 | J99: 0 | K99: 0 | L99: 0 | M99: 1.5 | N99: 112.2 | O99: 9.4 | P99: 9.3 | Q99: 01:30:00
B100: 9.5 | C100: 87 | D100: 9.5 | E100: 1.1 | F100: 1.8 | G100: 1029.2 | H100: 0 | I100: 0 | J100: 0 | K100: 0 | L100: 0 | M100: 1.5 | N100: 112.2 | O100: 9.4 | P100: 9.3 | Q100: 01:31:00
B101: 9.5 | C101: 87 | D101: 9.5 | E101: 1.4 | F101: 1.8 | G101: 1029 | H101: 0 | I101: 0 | J101: 0 | K101: 0 | L101: 0 | M101: 1.5 | N101: 112.2 | O101: 9.4 | P101: 9.3 | Q101: 01:32:00
B102: 9.5 | C102: 87 | D102: 9.5 | E102: 2.9 | F102: 3.6 | G102: 1029.2 | H102: 0 | I102: 0 | J102: 0 | K102: 0 | L102: 0 | M102: 1.5 | N102: 112.2 | O102: 9.4 | P102: 9.3 | Q102: 01:33:00
B103: 9.5 | C103: 87 | D103: 9.1 | E103: 5.4 | F103: 7.2 | G103: 1029.1 | H103: 0 | I103: 0 | J103: 0 | K103: 0 | L103: 0 | M103: 1.5 | N103: 112.2 | O103: 9.4 | P103: 9.3 | Q103: 01:34:00
B104: 9.5 | C104: 87 | D104: 9.5 | E104: 4.3 | F104: 5.4 | G104: 1029.2 | H104: 0 | I104: 0 | J104: 0 | K104: 0 | L104: 0 | M104: 1.5 | N104: 112.2 | O104: 9.4 | P104: 9.3 | Q104: 01:35:00
B105: 9.5 | C105: 87 | D105: 9.5 | E105: 4 | F105: 5.4 | G105: 1029.2 | H105: 0 | I105: 0 | J105: 0 | K105: 0 | L105: 0 | M105: 1.5 | N105: 112.2 | O105: 9.4 | P105: 9.3 | Q105: 01:36:00
B106: 9.5 | C106: 87 | D106: 9.5 | E106: 4.3 | F106: 7.2 | G106: 1028.9 | H106: 0 | I106: 0 | J106: 0 | K106: 0 | L106: 0 | M106: 1.5 | N106: 112.2 | O106: 9.4 | P106: 9.3 | Q106: 01:37:00
B107: 9.5 | C107: 87 | D107: 9.5 | E107: 2.9 | F107: 3.6 | G107: 1028.9 | H107: 0 | I107: 0 | J107: 0 | K107: 0 | L107: 0 | M107: 1.5 | N107: 112.2 | O107: 9.4 | P107: 9.3 | Q107: 01:38:00
B108: 9.5 | C108: 87 | D108: 9.5 | E108: 1.1 | F108: 1.8 | G108: 1029 | H108: 0 | I108: 0 | J108: 0 | K108: 0 | L108: 0 | M108: 1.5 | N108: 112.2 | O108: 9.4 | P108: 9.3 | Q108: 01:39:00
B109: 9.5 | C109: 87 | D109: 9.5 | E109: 4 | F109: 5.4 | G109: 1028.9 | H109: 0 | I109: 0 | J109: 0 | K109: 0 | L109: 0 | M109: 1.5 | N109: 112.2 | O109: 9.4 | P109: 9.3 | Q109: 01:40:00
B110: 9.5 | C110: 87 | D110: 9.1 | E110: 5.4 | F110: 7.2 | G110: 1029.1 | H110: 0 | I110: 0 | J110: 0 | K110: 0 | L110: 0 | M110: 1.5 | N110: 112.2 | O110: 9.4 | P110: 9.3 | Q110: 01:41:00
B111: 9.5 | C111: 87 | D111: 9.5 | E111: 1.4 | F111: 3.6 | G111: 1029.2 | H111: 0 | I111: 0 | J111: 0 | K111: 0 | L111: 0 | M111: 1.5 | N111: 112.2 | O111: 9.4 | P111: 9.3 | Q111: 01:42:00
B112: 9.5 | C112: 87 | D112: 9.5 | E112: 0 | F112: 0 | G112: 1029.1 | H112: 0 | I112: 0 | J112: 0 | K112: 0 | L112: 0 | M112: 1.5 | N112: 112.2 | O112: 9.4 | P112: 9.3 | Q112: 01:43:00
B113: 9.5 | C113: 87 | D113: 9.5 | E113: 2.2 | F113: 3.6 | G113: 1029.3 | H113: 0 | I113: 0 | J113: 0 | K113: 0 | L113: 0 | M113: 1.5 | N113: 112.2 | O113: 9.4 | P113: 9.3 | Q113: 01:44:00
B114: 9.5 | C114: 87 | D114: 9.5 | E114: 2.2 | F114: 3.6 | G114: 1029.1 | H114: 0 | I114: 0 | J114: 0 | K114: 0 | L114: 0 | M114: 1.5 | N114: 112.2 | O114: 9.4 | P114: 9.3 | Q114: 01:45:00
B115: 9.5 | C115: 87 | D115: 9.5 | E115: 0 | F115: 0 | G115: 1029.1 | H115: 0 | I115: 0 | J115: 0 | K115: 0 | L115: 0 | M115: 1.5 | N115: 112.2 | O115: 9.4 | P115: 9.3 | Q115: 01:46:00
B116: 9.5 | C116: 87 | D116: 9.5 | E116: 3.6 | F116: 3.6 | G116: 1029.2 | H116: 0 | I116: 0 | J116: 0 | K116: 0 | L116: 0 | M116: 1.5 | N116: 112.2 | O116: 9.4 | P116: 9.3 | Q116: 01:47:00
B117: 9.5 | C117: 87 | D117: 9.5 | E117: 4.7 | F117: 7.2 | G117: 1029.1 | H117: 0 | I117: 0 | J117: 0 | K117: 0 | L117: 0 | M117: 1.5 | N117: 112.2 | O117: 9.4 | P117: 9.3 | Q117: 01:48:00
B118: 9.5 | C118: 87 | D118: 9.5 | E118: 1.4 | F118: 1.8 | G118: 1029 | H118: 0 | I118: 0 | J118: 0 | K118: 0 | L118: 0 | M118: 1.5 | N118: 112.2 | O118: 9.4 | P118: 9.3 | Q118: 01:49:00
B119: 9.5 | C119: 87 | D119: 9.5 | E119: 4.7 | F119: 5.4 | G119: 1029.1 | H119: 0 | I119: 0 | J119: 0 | K119: 0 | L119: 0 | M119: 1.5 | N119: 112.2 | O119: 9.4 | P119: 9.3 | Q119: 01:50:00
B120: 9.5 | C120: 87 | D120: 9.5 | E120: 3.2 | F120: 3.6 | G120: 1029.2 | H120: 0 | I120: 0 | J120: 0 | K120: 0 | L120: 0 | M120: 1.5 | N120: 112.2 | O120: 9.4 | P120: 9.3 | Q120: 01:51:00
B121: 9.5 | C121: 87 | D121: 9.5 | E121: 1.8 | F121: 3.6 | G121: 1029 | H121: 0 | I121: 0 | J121: 0 | K121: 0 | L121: 0 | M121: 1.5 | N121: 112.2 | O121: 9.4 | P121: 9.3 | Q121: 01:52:00
B122: 9.5 | C122: 87 | D122: 9.5 | E122: 4.7 | F122: 5.4 | G122: 1028.9 | H122: 0 | I122: 0 | J122: 0 | K122: 0 | L122: 0 | M122: 1.5 | N122: 112.2 | O122: 9.4 | P122: 9.4 | Q122: 01:53:00
B123: 9.5 | C123: 87 | D123: 9.5 | E123: 2.2 | F123: 3.6 | G123: 1029.2 | H123: 0 | I123: 0 | J123: 0 | K123: 0 | L123: 0 | M123: 1.5 | N123: 112.2 | O123: 9.4 | P123: 9.4 | Q123: 01:54:00
B124: 9.5 | C124: 87 | D124: 9.5 | E124: 3.6 | F124: 5.4 | G124: 1029.1 | H124: 0 | I124: 0 | J124: 0 | K124: 0 | L124: 0 | M124: 1.5 | N124: 112.2 | O124: 9.4 | P124: 9.3 | Q124: 01:55:00
B125: 9.5 | C125: 88 | D125: 9.5 | E125: 1.1 | F125: 1.8 | G125: 1029 | H125: 0 | I125: 0 | J125: 0 | K125: 0 | L125: 0 | M125: 1.5 | N125: 112.2 | O125: 9.4 | P125: 9.4 | Q125: 01:56:00
B126: 9.5 | C126: 88 | D126: 9.5 | E126: 2.9 | F126: 5.4 | G126: 1029.1 | H126: 0 | I126: 0 | J126: 0 | K126: 0 | L126: 0 | M126: 1.5 | N126: 112.2 | O126: 9.4 | P126: 9.3 | Q126: 01:57:00
B127: 9.5 | C127: 87 | D127: 9.5 | E127: 4 | F127: 5.4 | G127: 1029 | H127: 0 | I127: 0 | J127: 0 | K127: 0 | L127: 0 | M127: 1.5 | N127: 112.2 | O127: 9.4 | P127: 9.4 | Q127: 01:58:00
B128: 9.5 | C128: 87 | D128: 9.5 | E128: 1.8 | F128: 1.8 | G128: 1029.2 | H128: 0 | I128: 0 | J128: 0 | K128: 0 | L128: 0 | M128: 1.5 | N128: 112.2 | O128: 9.4 | P128: 9.4 | Q128: 01:59:00
B129: 9.5 | C129: 87 | D129: 9.5 | E129: 0 | F129: 0 | G129: 1029.2 | H129: 0 | I129: 0 | J129: 0 | K129: 0 | L129: 0 | M129: 1.5 | N129: 112.2 | O129: 9.4 | P129: 9.3 | Q129: 02:00:00
B130: 9.5 | C130: 87 | D130: 9.5 | E130: 1.1 | F130: 1.8 | G130: 1028.9 | H130: 0 | I130: 0 | J130: 0 | K130: 0 | L130: 0 | M130: 1.5 | N130: 112.2 | O130: 9.4 | P130: 9.4 | Q130: 02:01:00
B131: 9.5 | C131: 87 | D131: 9.5 | E131: 4 | F131: 5.4 | G131: 1029 | H131: 0 | I131: 0 | J131: 0 | K131: 0 | L131: 0 | M131: 1.5 | N131: 112.2 | O131: 9.4 | P131: 9.4 | Q131: 02:02:00
B132: 9.5 | C132: 87 | D132: 9.5 | E132: 3.6 | F132: 3.6 | G132: 1029 | H132: 0 | I132: 0 | J132: 0 | K132: 0 | L132: 0 | M132: 1.5 | N132: 112.2 | O132: 9.4 | P132: 9.3 | Q132: 02:03:00
B133: 9.5 | C133: 87 | D133: 9.5 | E133: 2.9 | F133: 3.6 | G133: 1029.1 | H133: 0 | I133: 0 | J133: 0 | K133: 0 | L133: 0 | M133: 1.5 | N133: 112.2 | O133: 9.4 | P133: 9.3 | Q133: 02:04:00
B134: 9.5 | C134: 87 | D134: 9.5 | E134: 2.9 | F134: 3.6 | G134: 1029.1 | H134: 0 | I134: 0 | J134: 0 | K134: 0 | L134: 0 | M134: 1.5 | N134: 112.2 | O134: 9.4 | P134: 9.4 | Q134: 02:05:00
B135: 9.5 | C135: 87 | D135: 9.5 | E135: 1.4 | F135: 1.8 | G135: 1029 | H135: 0 | I135: 0 | J135: 0 | K135: 0 | L135: 0 | M135: 1.5 | N135: 112.2 | O135: 9.4 | P135: 9.4 | Q135: 02:06:00
B136: 9.5 | C136: 87 | D136: 9.5 | E136: 0 | F136: 0 | G136: 1029 | H136: 0 | I136: 0 | J136: 0 | K136: 0 | L136: 0 | M136: 1.5 | N136: 112.2 | O136: 9.4 | P136: 9.3 | Q136: 02:07:00
B137: 9.5 | C137: 88 | D137: 9.5 | E137: 1.4 | F137: 1.8 | G137: 1029 | H137: 0 | I137: 0 | J137: 0 | K137: 0 | L137: 0 | M137: 1.5 | N137: 112.2 | O137: 9.4 | P137: 9.3 | Q137: 02:08:00
B138: 9.4 | C138: 87 | D138: 9.4 | E138: 3.6 | F138: 3.6 | G138: 1029 | H138: 0 | I138: 0 | J138: 0 | K138: 0 | L138: 0 | M138: 1.5 | N138: 112.2 | O138: 9.4 | P138: 9.3 | Q138: 02:09:00
B139: 9.4 | C139: 87 | D139: 9.4 | E139: 4.3 | F139: 5.4 | G139: 1029 | H139: 0 | I139: 0 | J139: 0 | K139: 0 | L139: 0 | M139: 1.5 | N139: 112.2 | O139: 9.4 | P139: 9.3 | Q139: 02:10:00 | U139: =IF(J139>0,60,"") -> 
B140: 9.4 | C140: 87 | D140: 9.4 | E140: 0.4 | F140: 1.8 | G140: 1029.2 | H140: 0 | I140: 0 | J140: 0 | K140: 0 | L140: 0 | M140: 1.5 | N140: 112.2 | O140: 9.4 | P140: 9.3 | Q140: 02:11:00
B141: 9.4 | C141: 87 | D141: 9.4 | E141: 2.9 | F141: 3.6 | G141: 1029.3 | H141: 0 | I141: 0 | J141: 0 | K141: 0 | L141: 0 | M141: 1.5 | N141: 112.2 | O141: 9.4 | P141: 9.3 | Q141: 02:12:00
B142: 9.4 | C142: 87 | D142: 9.4 | E142: 4 | F142: 5.4 | G142: 1029.1 | H142: 0 | I142: 0 | J142: 0 | K142: 0 | L142: 0 | M142: 1.5 | N142: 112.2 | O142: 9.4 | P142: 9.3 | Q142: 02:13:00
B143: 9.4 | C143: 87 | D143: 9.4 | E143: 0.7 | F143: 1.8 | G143: 1029 | H143: 0 | I143: 0 | J143: 0 | K143: 0 | L143: 0 | M143: 1.5 | N143: 112.2 | O143: 9.4 | P143: 9.3 | Q143: 02:14:00
B144: 9.4 | C144: 87 | D144: 9.4 | E144: 0.4 | F144: 1.8 | G144: 1029.1 | H144: 0 | I144: 0 | J144: 0 | K144: 0 | L144: 0 | M144: 1.5 | N144: 112.2 | O144: 9.4 | P144: 9.3 | Q144: 02:15:00
B145: 9.4 | C145: 88 | D145: 9.4 | E145: 0 | F145: 0 | G145: 1029.1 | H145: 0 | I145: 0 | J145: 0 | K145: 0 | L145: 0 | M145: 1.5 | N145: 112.2 | O145: 9.4 | P145: 9.3 | Q145: 02:16:00
B146: 9.4 | C146: 88 | D146: 9.4 | E146: 1.1 | F146: 1.8 | G146: 1029 | H146: 0 | I146: 0 | J146: 0 | K146: 0 | L146: 0 | M146: 1.5 | N146: 112.2 | O146: 9.4 | P146: 9.3 | Q146: 02:17:00
B147: 9.4 | C147: 88 | D147: 9.4 | E147: 1.8 | F147: 1.8 | G147: 1029 | H147: 0 | I147: 0 | J147: 0 | K147: 0 | L147: 0 | M147: 1.5 | N147: 112.2 | O147: 9.4 | P147: 9.3 | Q147: 02:18:00
B148: 9.4 | C148: 88 | D148: 9.4 | E148: 0.4 | F148: 1.8 | G148: 1029 | H148: 0 | I148: 0 | J148: 0 | K148: 0 | L148: 0 | M148: 1.5 | N148: 112.2 | O148: 9.4 | P148: 9.3 | Q148: 02:19:00
B149: 9.4 | C149: 88 | D149: 9.4 | E149: 2.5 | F149: 3.6 | G149: 1029.1 | H149: 0 | I149: 0 | J149: 0 | K149: 0 | L149: 0 | M149: 1.5 | N149: 112.2 | O149: 9.4 | P149: 9.3 | Q149: 02:20:00
B150: 9.4 | C150: 88 | D150: 9.4 | E150: 2.2 | F150: 3.6 | G150: 1029.1 | H150: 0 | I150: 0 | J150: 0 | K150: 0 | L150: 0 | M150: 1.5 | N150: 112.2 | O150: 9.4 | P150: 9.3 | Q150: 02:21:00
B151: 9.4 | C151: 88 | D151: 9.4 | E151: 3.6 | F151: 5.4 | G151: 1029 | H151: 0 | I151: 0 | J151: 0 | K151: 0 | L151: 0 | M151: 1.5 | N151: 112.2 | O151: 9.4 | P151: 9.3 | Q151: 02:22:00
B152: 9.4 | C152: 87 | D152: 9 | E152: 5.4 | F152: 7.2 | G152: 1029.1 | H152: 0 | I152: 0 | J152: 0 | K152: 0 | L152: 0 | M152: 1.5 | N152: 112.2 | O152: 9.4 | P152: 9.3 | Q152: 02:23:00
B153: 9.4 | C153: 88 | D153: 9.4 | E153: 4 | F153: 5.4 | G153: 1028.9 | H153: 0 | I153: 0 | J153: 0 | K153: 0 | L153: 0 | M153: 1.5 | N153: 112.2 | O153: 9.4 | P153: 9.3 | Q153: 02:24:00
B154: 9.4 | C154: 88 | D154: 9.1 | E154: 5 | F154: 5.4 | G154: 1029.1 | H154: 0 | I154: 0 | J154: 0 | K154: 0 | L154: 0 | M154: 1.5 | N154: 112.2 | O154: 9.4 | P154: 9.3 | Q154: 02:25:00
B155: 9.4 | C155: 88 | D155: 9.4 | E155: 2.2 | F155: 5.4 | G155: 1029 | H155: 0 | I155: 0 | J155: 0 | K155: 0 | L155: 0 | M155: 1.5 | N155: 112.2 | O155: 9.4 | P155: 9.3 | Q155: 02:26:00
B156: 9.4 | C156: 88 | D156: 9.4 | E156: 2.5 | F156: 3.6 | G156: 1029.1 | H156: 0 | I156: 0 | J156: 0 | K156: 0 | L156: 0 | M156: 1.5 | N156: 112.2 | O156: 9.4 | P156: 9.3 | Q156: 02:27:00
B157: 9.4 | C157: 88 | D157: 9.4 | E157: 2.9 | F157: 3.6 | G157: 1028.9 | H157: 0 | I157: 0 | J157: 0 | K157: 0 | L157: 0 | M157: 1.5 | N157: 112.2 | O157: 9.4 | P157: 9.3 | Q157: 02:28:00
B158: 9.4 | C158: 88 | D158: 9.4 | E158: 1.4 | F158: 1.8 | G158: 1029 | H158: 0 | I158: 0 | J158: 0 | K158: 0 | L158: 0 | M158: 1.5 | N158: 112.2 | O158: 9.4 | P158: 9.3 | Q158: 02:29:00
B159: 9.4 | C159: 88 | D159: 9.4 | E159: 0 | F159: 0 | G159: 1029.1 | H159: 0 | I159: 0 | J159: 0 | K159: 0 | L159: 0 | M159: 1.5 | N159: 112.2 | O159: 9.4 | P159: 9.3 | Q159: 02:30:00
B160: 9.4 | C160: 88 | D160: 9.4 | E160: 0.4 | F160: 1.8 | G160: 1028.9 | H160: 0 | I160: 0 | J160: 0 | K160: 0 | L160: 0 | M160: 1.5 | N160: 112.2 | O160: 9.4 | P160: 9.3 | Q160: 02:31:00
B161: 9.4 | C161: 88 | D161: 9.4 | E161: 4.7 | F161: 5.4 | G161: 1028.8 | H161: 0 | I161: 0 | J161: 0 | K161: 0 | L161: 0 | M161: 1.5 | N161: 112.2 | O161: 9.4 | P161: 9.3 | Q161: 02:32:00
B162: 9.4 | C162: 88 | D162: 9.4 | E162: 3.2 | F162: 3.6 | G162: 1028.7 | H162: 0 | I162: 0 | J162: 0 | K162: 0 | L162: 0 | M162: 1.5 | N162: 112.2 | O162: 9.4 | P162: 9.3 | Q162: 02:33:00
B163: 9.4 | C163: 88 | D163: 9.4 | E163: 4.3 | F163: 5.4 | G163: 1028.7 | H163: 0 | I163: 0 | J163: 0 | K163: 0 | L163: 0 | M163: 1.5 | N163: 112.2 | O163: 9.4 | P163: 9.3 | Q163: 02:34:00
B164: 9.4 | C164: 88 | D164: 9.4 | E164: 3.6 | F164: 3.6 | G164: 1029 | H164: 0 | I164: 0 | J164: 0 | K164: 0 | L164: 0 | M164: 1.5 | N164: 112.2 | O164: 9.4 | P164: 9.3 | Q164: 02:35:00
B165: 9.4 | C165: 88 | D165: 9.4 | E165: 1.1 | F165: 1.8 | G165: 1028.9 | H165: 0 | I165: 0 | J165: 0 | K165: 0 | L165: 0 | M165: 1.5 | N165: 112.2 | O165: 9.4 | P165: 9.3 | Q165: 02:36:00
B166: 9.4 | C166: 88 | D166: 9.4 | E166: 4.7 | F166: 7.2 | G166: 1028.9 | H166: 0 | I166: 0 | J166: 0 | K166: 0 | L166: 0 | M166: 1.5 | N166: 112.2 | O166: 9.4 | P166: 9.3 | Q166: 02:37:00
B167: 9.4 | C167: 88 | D167: 9.4 | E167: 1.1 | F167: 1.8 | G167: 1028.7 | H167: 0 | I167: 0 | J167: 0 | K167: 0 | L167: 0 | M167: 1.5 | N167: 112.2 | O167: 9.4 | P167: 9.3 | Q167: 02:38:00
B168: 9.4 | C168: 88 | D168: 9.4 | E168: 4.3 | F168: 5.4 | G168: 1028.8 | H168: 0 | I168: 0 | J168: 0 | K168: 0 | L168: 0 | M168: 1.5 | N168: 112.2 | O168: 9.4 | P168: 9.3 | Q168: 02:39:00
B169: 9.4 | C169: 88 | D169: 9.4 | E169: 0 | F169: 0 | G169: 1028.8 | H169: 0 | I169: 0 | J169: 0 | K169: 0 | L169: 0 | M169: 1.5 | N169: 112.2 | O169: 9.4 | P169: 9.3 | Q169: 02:40:00
B170: 9.4 | C170: 88 | D170: 9.4 | E170: 0.4 | F170: 1.8 | G170: 1028.8 | H170: 0 | I170: 0 | J170: 0 | K170: 0 | L170: 0 | M170: 1.5 | N170: 112.2 | O170: 9.4 | P170: 9.3 | Q170: 02:41:00
B171: 9.4 | C171: 88 | D171: 9.4 | E171: 0.4 | F171: 1.8 | G171: 1028.7 | H171: 0 | I171: 0 | J171: 0 | K171: 0 | L171: 0 | M171: 1.5 | N171: 112.2 | O171: 9.4 | P171: 9.3 | Q171: 02:42:00
B172: 9.4 | C172: 88 | D172: 9.4 | E172: 1.8 | F172: 1.8 | G172: 1028.8 | H172: 0 | I172: 0 | J172: 0 | K172: 0 | L172: 0 | M172: 1.5 | N172: 112.2 | O172: 9.4 | P172: 9.3 | Q172: 02:43:00
B173: 9.3 | C173: 88 | D173: 9.3 | E173: 0.4 | F173: 1.8 | G173: 1028.8 | H173: 0 | I173: 0 | J173: 0 | K173: 0 | L173: 0 | M173: 1.5 | N173: 112.2 | O173: 9.4 | P173: 9.3 | Q173: 02:44:00
B174: 9.3 | C174: 89 | D174: 9.3 | E174: 0.4 | F174: 1.8 | G174: 1028.7 | H174: 0 | I174: 0 | J174: 0 | K174: 0 | L174: 0 | M174: 1.5 | N174: 112.2 | O174: 9.4 | P174: 9.3 | Q174: 02:45:00
B175: 9.3 | C175: 89 | D175: 9.3 | E175: 0 | F175: 0 | G175: 1029.1 | H175: 0 | I175: 0 | J175: 0 | K175: 0 | L175: 0 | M175: 1.5 | N175: 112.2 | O175: 9.4 | P175: 9.3 | Q175: 02:46:00
B176: 9.4 | C176: 89 | D176: 9.4 | E176: 1.1 | F176: 3.6 | G176: 1028.8 | H176: 0 | I176: 0 | J176: 0 | K176: 0 | L176: 0 | M176: 1.5 | N176: 112.2 | O176: 9.4 | P176: 9.3 | Q176: 02:47:00
B177: 9.4 | C177: 89 | D177: 9.4 | E177: 2.2 | F177: 3.6 | G177: 1028.9 | H177: 0 | I177: 0 | J177: 0 | K177: 0 | L177: 0 | M177: 1.5 | N177: 112.2 | O177: 9.3 | P177: 9.2 | Q177: 02:48:00
B178: 9.3 | C178: 89 | D178: 9.3 | E178: 1.4 | F178: 1.8 | G178: 1028.8 | H178: 0 | I178: 0 | J178: 0 | K178: 0 | L178: 0 | M178: 1.5 | N178: 112.2 | O178: 9.3 | P178: 9.2 | Q178: 02:49:00
B179: 9.3 | C179: 89 | D179: 9.3 | E179: 1.4 | F179: 3.6 | G179: 1028.9 | H179: 0 | I179: 0 | J179: 0 | K179: 0 | L179: 0 | M179: 1.5 | N179: 112.2 | O179: 9.3 | P179: 9.2 | Q179: 02:50:00
B180: 9.3 | C180: 89 | D180: 9.3 | E180: 3.6 | F180: 5.4 | G180: 1028.8 | H180: 0 | I180: 0 | J180: 0 | K180: 0 | L180: 0 | M180: 1.5 | N180: 112.2 | O180: 9.3 | P180: 9.2 | Q180: 02:51:00
B181: 9.3 | C181: 89 | D181: 9.3 | E181: 1.8 | F181: 1.8 | G181: 1028.7 | H181: 0 | I181: 0 | J181: 0 | K181: 0 | L181: 0 | M181: 1.5 | N181: 112.2 | O181: 9.3 | P181: 9.2 | Q181: 02:52:00
B182: 9.3 | C182: 89 | D182: 9.3 | E182: 1.8 | F182: 1.8 | G182: 1028.8 | H182: 0 | I182: 0 | J182: 0 | K182: 0 | L182: 0 | M182: 1.5 | N182: 112.2 | O182: 9.3 | P182: 9.2 | Q182: 02:53:00
B183: 9.3 | C183: 89 | D183: 9.3 | E183: 1.1 | F183: 1.8 | G183: 1028.7 | H183: 0 | I183: 0 | J183: 0 | K183: 0 | L183: 0 | M183: 1.5 | N183: 112.2 | O183: 9.3 | P183: 9.2 | Q183: 02:54:00
B184: 9.3 | C184: 89 | D184: 9.3 | E184: 2.2 | F184: 3.6 | G184: 1028.8 | H184: 0 | I184: 0 | J184: 0 | K184: 0 | L184: 0 | M184: 1.5 | N184: 112.2 | O184: 9.3 | P184: 9.2 | Q184: 02:55:00
B185: 9.3 | C185: 89 | D185: 9.3 | E185: 1.1 | F185: 1.8 | G185: 1028.8 | H185: 0 | I185: 0 | J185: 0 | K185: 0 | L185: 0 | M185: 1.5 | N185: 112.2 | O185: 9.3 | P185: 9.2 | Q185: 02:56:00
B186: 9.3 | C186: 89 | D186: 9.3 | E186: 1.4 | F186: 1.8 | G186: 1028.9 | H186: 0 | I186: 0 | J186: 0 | K186: 0 | L186: 0 | M186: 1.5 | N186: 112.2 | O186: 9.3 | P186: 9.2 | Q186: 02:57:00
B187: 9.3 | C187: 89 | D187: 9.3 | E187: 4 | F187: 5.4 | G187: 1028.8 | H187: 0 | I187: 0 | J187: 0 | K187: 0 | L187: 0 | M187: 1.5 | N187: 112.2 | O187: 9.3 | P187: 9.2 | Q187: 02:58:00
B188: 9.3 | C188: 89 | D188: 9.3 | E188: 1.1 | F188: 1.8 | G188: 1028.9 | H188: 0 | I188: 0 | J188: 0 | K188: 0 | L188: 0 | M188: 1.5 | N188: 112.2 | O188: 9.4 | P188: 9.3 | Q188: 02:59:00
B189: 9.3 | C189: 89 | D189: 9.3 | E189: 0.4 | F189: 1.8 | G189: 1029.1 | H189: 0 | I189: 0 | J189: 0 | K189: 0 | L189: 0 | M189: 1.5 | N189: 112.2 | O189: 9.3 | P189: 9.2 | Q189: 03:00:00
B190: 9.3 | C190: 89 | D190: 9.3 | E190: 1.1 | F190: 1.8 | G190: 1029.2 | H190: 0 | I190: 0 | J190: 0 | K190: 0 | L190: 0 | M190: 1.5 | N190: 112.2 | O190: 9.3 | P190: 9.2 | Q190: 03:01:00
B191: 9.3 | C191: 89 | D191: 9.3 | E191: 4 | F191: 5.4 | G191: 1029 | H191: 0 | I191: 0 | J191: 0 | K191: 0 | L191: 0 | M191: 1.5 | N191: 112.2 | O191: 9.3 | P191: 9.2 | Q191: 03:02:00
B192: 9.3 | C192: 89 | D192: 9.3 | E192: 4.7 | F192: 5.4 | G192: 1028.9 | H192: 0 | I192: 0 | J192: 0 | K192: 0 | L192: 0 | M192: 1.5 | N192: 112.2 | O192: 9.3 | P192: 9.2 | Q192: 03:03:00
B193: 9.3 | C193: 89 | D193: 9.3 | E193: 2.9 | F193: 5.4 | G193: 1028.9 | H193: 0 | I193: 0 | J193: 0 | K193: 0 | L193: 0 | M193: 1.5 | N193: 112.2 | O193: 9.3 | P193: 9.2 | Q193: 03:04:00
B194: 9.3 | C194: 90 | D194: 9.3 | E194: 2.9 | F194: 5.4 | G194: 1028.9 | H194: 0 | I194: 0 | J194: 0 | K194: 0 | L194: 0 | M194: 1.5 | N194: 112.2 | O194: 9.3 | P194: 9.2 | Q194: 03:05:00
B195: 9.3 | C195: 90 | D195: 9.3 | E195: 1.1 | F195: 1.8 | G195: 1029 | H195: 0 | I195: 0 | J195: 0 | K195: 0 | L195: 0 | M195: 1.5 | N195: 112.2 | O195: 9.3 | P195: 9.2 | Q195: 03:06:00
B196: 9.3 | C196: 90 | D196: 9.3 | E196: 1.1 | F196: 1.8 | G196: 1029 | H196: 0 | I196: 0 | J196: 0 | K196: 0 | L196: 0 | M196: 1.5 | N196: 112.2 | O196: 9.3 | P196: 9.2 | Q196: 03:07:00
B197: 9.3 | C197: 90 | D197: 9.3 | E197: 3.6 | F197: 3.6 | G197: 1029 | H197: 0 | I197: 0 | J197: 0 | K197: 0 | L197: 0 | M197: 1.5 | N197: 112.2 | O197: 9.3 | P197: 9.2 | Q197: 03:08:00
B198: 9.3 | C198: 90 | D198: 9.3 | E198: 1.4 | F198: 1.8 | G198: 1029 | H198: 0 | I198: 0 | J198: 0 | K198: 0 | L198: 0 | M198: 1.5 | N198: 112.2 | O198: 9.3 | P198: 9.2 | Q198: 03:09:00
B199: 9.3 | C199: 90 | D199: 9.3 | E199: 4 | F199: 5.4 | G199: 1029 | H199: 0 | I199: 0 | J199: 0 | K199: 0 | L199: 0 | M199: 1.5 | N199: 112.2 | O199: 9.3 | P199: 9.2 | Q199: 03:10:00
B200: 9.3 | C200: 90 | D200: 9.3 | E200: 2.2 | F200: 3.6 | G200: 1029 | H200: 0 | I200: 0 | J200: 0 | K200: 0 | L200: 0 | M200: 1.5 | N200: 112.2 | O200: 9.3 | P200: 9.2 | Q200: 03:11:00
... 1138 more rows

Sheet CONSOLE
B1: https://marine.meteoconsult.fr/meteo-marine/horaires-maree-la-tranche-sur-mer-1083-0.php
D2: Conditions | F2: Nuageux
B3: *Les relevés correspondent à l'heure de la mise à jour*
B4: Températures Humidité de l'air Vitesse du vent Chaleur solaire = T°+2° | F4: Marée Haute | G4: 0.1680555556 | H4: Manuel
F5: Marée basse | G5: 0.4125 | H5: "
F6: Coéfficient | G6: 86 | H6: ""
F8: Marée Haute | G8: 0.6909722222 | H8: Manuel
F9: Marée basse | G9: 0.9291666667 | H9: "
F10: Coéfficient | G10: 93 | H10: ""
F12: T° de l'eau | G12: 8 | H12: Manuel
B13: Petite Pluie
B14: Température ressentie : levé et couché du soleil : | G14: Soleil
B15: Dernière mise à jour : Vent en rafale : | E15: Total | F15: Heures soleil | G15: =G17-G16 -> 10:34:00
B16: Vent moyen : | F16: Levé | G16: 08:03:00 | H16: Manuel
B17: Pôle culturel des Floralies Statistiques | F17: Couché | G17: 18:37:00 | H17: "
F18: Comment faire dans la macro pour changer la couleur de la bouée correspondante ?
F19: T° extérieure | G19: =INDIRECT("RELEVÉS!B" & COUNT(RELEVÉS!B:B) + 6,TRUE)+30*RAND() -> 29.31664314 | H19: Avec des formules dans les cellules ci-contre ?
F20: Vent console | G20: =RELEVÉS!E7+60*RAND() -> 54.76065308 | H20: Ça ne fonctionne que si je saisi les données
F21: Vent rafale | G21: =RELEVÉS!F7+50*RAND() -> 28.42551835
F22: Soleil | G22: =RELEVÉS!AV3+3*RAND() -> 4.743517106
F25: H% du sol | G25: 0.29 | H25: Manuel
F26: Vent moyen | G26: =RELEVÉS!U5+5 -> 6.920816327
F27: Humidité | G27: =100-H27+60*RAND() -> 58.6347502 | H27: =INDIRECT("RELEVÉS!C" & COUNT(RELEVÉS!C:C) + 6,TRUE) -> 78 | I27: Auto
F28: T° ressentie | G28: =INDIRECT("RELEVÉS!D" & COUNT(RELEVÉS!D:D) + 6,TRUE) -> 11.6
B29: Haute Matinée Basse de l'eau Haute Après-midi Basse Humidité du sol à 20cm de la surface
H30: A chaque recalcul de feuilles ( faire F9 ) les "bouées sont remises à jour.
H31: ATTENTION !!!
H32: Dans les cellules G19 à G22 et G27 supprimer les "+xx*ALEA()"
H33: qui sont là que pour le test.
B34: =NOW() -> 2023-02-19T22:38:00.120
C35: Météo + Température de l'eau------> | G35: 18
E36: Site | F36: http://meteofloralies.free.fr
C37: Prévisions | F37: https://www.lachainemeteo.com/meteo-france/previsions-meteo-france-aujourdhui
